bitfinex/quotes_SOLUSD_20251002
["timestamp","ask_amount","ask_price","bid_price","bid_amount"]
[1759448366205,15.85177698,234.45,234.44,20.8]
[1759448366391,15.85177698,234.45,234.44,30.18]
[1759448366914,15.85177698,234.45,234.37,0.68]
[1759448366915,15.85177698,234.45,234.38,20.8]
[1759448367117,15.85177698,234.45,234.42,20.8]
[1759448367304,11.57647521,234.44,234.43,30.18]
[1759448368607,11.57647521,234.44,234.37,4.26668005]
[1759448368608,26.50566817,234.44,234.35,0.68]
[1759448368802,10.87647521,234.43,234.36,30.18]
[1759448369008,10.87647521,234.41,234.39,20.8]
[1759448369215,11.57647521,234.41,234.39,30.18]
[1759448369609,11.57647521,234.4,234.39,30.18]
[1759448369822,15.84268681,234.4,234.39,30.18]
[1759448370029,15.84268681,234.4,234.35,20.8]
[1759448370030,10.87647521,234.39,234.35,20.8]
[1759448370197,11.57647521,234.39,234.36,30.18]
[1759448370597,10.87647521,234.37,234.36,30.18]
[1759448370820,12.81366791,234.45,234.36,0.68]
[1759448370997,26.07664403,234.69,234.36,0.68]
[1759448370998,0.7,234.55,234.4,20.8]
[1759448371322,0.7,234.55,234.44,20.8]
[1759448371495,10.87647521,234.54,234.48,20.8]
[1759448371794,4.26366504,234.54,234.52,20.8]
[1759448371995,15.14014025,234.54,234.53,30.42]
[1759448372395,4.26366504,234.54,234.53,30.42]
[1759448373905,10.87647521,234.54,234.53,30.42]
[1759448374804,11.56647521,234.54,234.53,30.42]
[1759448375237,11.56647521,234.54,234.51,20.8]
[1759448375521,10.87647521,234.52,234.5,30.4]
[1759448375711,10.87647521,234.5,234.47,51.2]
[1759448376037,4.95457418,234.49,234.47,51.2]
[1759448376203,10.87647521,234.48,234.47,51.2]
[1759448376533,11.56647521,234.48,234.47,30.4]
[1759448377304,15.83123126,234.48,234.47,30.4]
[1759448377720,15.14123126,234.48,234.47,30.4]
[1759448378604,26.49312139,234.48,234.4,30.38]
[1759448378923,10.87647521,234.46,234.4,30.38]
[1759448379328,4.26530177,234.45,234.4,30.38]
[1759448380008,4.26530177,234.45,234.41,0.69]
[1759448380206,4.26530177,234.45,234.43,20.8]
[1759448380403,4.26530177,234.45,234.43,51.2]
[1759448388029,11.56647521,234.44,234.43,51.2]
[1759448388210,10.87647521,234.43,234.36,0.69]
[1759448388408,0.69,234.44,234.4,20.8]
[1759448388614,0.69,234.43,234.4,51.14]
[1759448388919,10.87647521,234.41,234.4,51.14]
[1759448389228,15.14250481,234.41,234.4,51.14]
[1759448390918,15.14250481,234.41,234.39,30.32]
[1759448394210,4.26586771,234.42,234.39,30.32]
[1759448394412,10.87647521,234.44,234.42,20.8]
[1759448394614,10.87647521,234.44,234.42,51.1]
[1759448395335,15.14210683,234.44,234.42,51.1]
[1759448401624,15.14210683,234.44,234.43,30.26]
[1759448402517,15.14210683,234.44,234.42,20.8]
[1759448402718,15.14210683,234.44,234.4,0.69]
[1759448402936,15.14210683,234.44,234.43,20.8]
[1759448403122,10.87647521,234.46,234.43,51.04]
[1759448403328,10.87647521,234.46,234.41,0.67]
[1759448403631,15.14177698,234.45,234.44,20.8]
[1759448404029,15.14177698,234.45,234.44,51.04]
[1759448404220,15.14177698,234.45,234.42,0.67]
[1759448404738,15.14177698,234.45,234.36,10.66718409]
[1759448404739,0.66,234.51,234.43,0.67]
[1759448404923,0.66,234.56,234.47,20.8]
[1759448405125,0.66,234.56,234.51,20.8]
[1759448405319,10.65689074,234.59,234.52,30.26]
[1759448405624,10.87647521,234.57,234.49,51.06]
[1759448405841,10.87647521,234.55,234.49,51.06]
[1759448406037,10.87647521,234.58,234.36,4.26684888]
[1759448406038,13.19607453,234.53,234.36,4.26684888]
[1759448406233,13.19607453,234.51,234.37,0.67]
[1759448406543,13.19607453,234.51,234.4,20.8]
[1759448406724,10.87647521,234.49,234.44,20.8]
[1759448406930,10.87647521,234.47,234.44,20.8]
[1759448407126,0.66,234.46,234.44,20.8]
[1759448407545,11.53647521,234.45,234.44,20.8]
[1759448407718,15.80177698,234.45,234.44,20.8]
[1759448412130,10.87647521,234.44,234.36,4.26685415]
[1759448412446,0.66,234.43,234.37,30.24]
[1759448412637,0.66,234.42,234.36,30.26]
[1759448412950,0.66,234.42,234.39,20.8]
[1759448413151,10.87647521,234.4,234.36,30.26]
[1759448413357,10.87647521,234.38,234.34,30.26]
[1759448413545,11.53647521,234.38,234.37,20.8]
[1759448414242,15.80305085,234.38,234.37,20.8]
[1759448417063,0.66,234.41,234.37,20.8]
[1759448417258,0.66,234.4,234.38,30.24]
[1759448417635,10.87647521,234.38,234.31,21.47]
[1759448417844,0.66,234.38,234.35,20.8]
[1759448418350,10.87647521,234.42,234.35,20.8]
[1759448418554,0.66,234.4,234.35,20.8]
[1759448418948,10.87647521,234.36,234.35,20.8]
[1759448419865,11.53647521,234.36,234.35,20.8]
[1759448420065,10.87647521,234.36,234.35,20.8]
[1759448420451,11.53647521,234.36,234.35,20.8]
[1759448420857,11.53647521,234.36,234.28,0.87]
[1759448421061,15.59492638,234.35,234.34,20.8]
[1759448421852,10.87647521,234.34,234.31,30.24]
[1759448422049,4.26748602,234.33,234.31,30.24]
[1759448422253,10.87647521,234.32,234.31,30.24]
[1759448423167,4.26766814,234.32,234.31,30.24]
[1759448424375,4.26766814,234.32,234.3,20.8]
[1759448424571,4.26766814,234.32,234.31,30.22]
[1759448424758,4.93766814,234.32,234.28,0.2]
[1759448424953,10.87647521,234.3,234.28,0.2]
[1759448425254,15.14468981,234.29,234.28,21.0]
[1759448426061,10.87647521,234.29,234.28,21.0]
[1759448426577,10.87647521,234.29,234.28,21.66]
[1759448426875,4.26676304,234.37,234.28,5.12838726]
[1759448427063,10.87647521,234.36,234.29,51.68]
[1759448427259,10.87647521,234.35,234.3,0.66]
[1759448427676,10.87647521,234.35,234.31,0.66]
[1759448427969,10.87647521,234.35,234.28,0.2]
[1759448427970,10.87647521,234.35,234.34,20.8]
[1759448428779,11.54647521,234.35,234.34,20.8]
[1759448429479,15.81359703,234.35,234.34,20.8]
[1759448429684,15.81359703,234.35,234.33,51.02]
[1759448430183,15.14359703,234.35,234.33,20.8]
[1759448430389,15.14359703,234.35,234.33,51.02]
[1759448430681,15.14359703,234.35,234.33,20.8]
[1759448430888,15.14359703,234.35,234.33,51.02]
[1759448431656,11.53647521,234.34,234.33,20.8]
[1759448432065,10.87647521,234.33,234.32,30.22]
[1759448432280,11.53647521,234.33,234.28,0.2]
[1759448432574,10.87647521,234.31,234.29,51.02]
[1759448433675,10.87647521,234.3,234.29,51.02]
[1759448434377,10.87647521,234.33,234.32,20.8]
[1759448434753,10.87647521,234.33,234.32,51.02]
[1759448435673,4.26748602,234.33,234.32,51.02]
[1759448435876,15.14396123,234.33,234.32,51.02]
[1759448438373,114.87273586,234.71,234.32,51.02]
[1759448438374,3.58631131,234.59,234.32,25.06766814]
[1759448438576,4.92311975,234.57,234.4,20.8]
[1759448438788,0.66,234.56,234.44,20.8]
[1759448438982,0.66,234.56,234.48,20.8]
[1759448439179,0.66,234.56,234.48,33.67490224]
[1759448439788,4.26348326,234.55,234.48,33.67490224]
[1759448439963,4.26348326,234.55,234.48,20.8]
[1759448440362,10.87647521,234.54,234.48,20.8]
[1759448440574,14.92219142,234.55,234.47,20.8]
[1759448440575,10.87647521,234.52,234.47,20.8]
[1759448440770,0.66,234.51,234.47,20.8]
[1759448441085,14.92219142,234.55,234.41,30.46]
[1759448441086,10.87647521,234.54,234.44,20.8]
[1759448441286,10.87647521,234.52,234.44,33.49659681]
[1759448441677,10.87647521,234.54,234.44,33.49659681]
[1759448441869,4.26421048,234.51,234.44,33.49659681]
[1759448442186,4.26421048,234.51,234.44,20.8]
[1759448443088,4.26421048,234.51,234.41,30.46]
[1759448443089,11.53647521,234.5,234.41,30.46]
[1759448443279,10.87647521,234.48,234.44,20.8]
[1759448443587,11.53647521,234.48,234.44,20.8]
[1759448443966,4.26493794,234.47,234.44,20.8]
[1759448446277,10.87647521,234.45,234.37,30.44]
[1759448446668,10.87647521,234.45,234.4,20.8]
[1759448446867,0.66,234.45,234.4,20.8]
[1759448447291,4.2654837,234.44,234.4,20.8]
[1759448447590,4.2654837,234.44,234.42,20.8]
[1759448447969,4.2654837,234.44,234.4,20.8]
[1759448449974,4.26530177,234.45,234.4,20.8]
[1759448450175,0.66,234.44,234.42,20.8]
[1759448450501,0.66,234.43,234.37,30.44]
[1759448450802,0.66,234.43,234.37,20.8]
[1759448450982,0.66,234.43,234.37,33.47349763]
[1759448451186,10.87647521,234.42,234.37,20.8]
[1759448451584,0.66,234.41,234.37,20.8]
[1759448452198,4.2662116,234.4,234.37,20.8]
[1759448453401,4.2660296,234.41,234.37,20.8]
[1759448453577,4.9260296,234.41,234.37,20.8]
[1759448454103,4.2660296,234.41,234.37,20.8]
[1759448454603,10.87647521,234.42,234.37,20.8]
[1759448454773,0.66,234.41,234.37,20.8]
[1759448455904,4.2662116,234.4,234.39,20.8]
[1759448456698,4.9262116,234.4,234.37,20.8]
[1759448456876,0.66,234.39,234.37,20.8]
[1759448457081,0.66,234.39,234.32,20.8]
[1759448458004,4.26657564,234.38,234.32,20.8]
[1759448458295,4.26657564,234.38,234.32,33.30457306]
[1759448462098,15.63301475,234.38,234.32,33.30457306]
[1759448463405,0.7,234.38,234.32,33.30457306]
[1759448463591,4.96657641,234.38,234.32,33.30457306]
[1759448464685,15.63301552,234.38,234.32,33.30457306]
[1759448465981,4.96657641,234.38,234.32,33.30457306]
[1759448466884,0.7,234.37,234.32,33.30457306]
[1759448467194,0.7,234.36,234.32,20.8]
[1759448467386,4.26712182,234.35,234.32,20.8]
[1759448467902,4.96712182,234.35,234.32,20.8]
[1759448468206,4.26712182,234.35,234.32,20.8]
[1759448468577,0.7,234.34,234.28,0.2]
[1759448468784,0.7,234.34,234.29,20.8]
[1759448468992,0.7,234.33,234.29,20.8]
[1759448469223,0.7,234.32,234.28,0.2]
[1759448469403,4.96780744,234.32,234.28,0.2]
[1759448470407,0.7,234.32,234.28,0.2]
[1759448471105,4.96769947,234.32,234.28,0.2]
[1759448471310,0.7,234.32,234.28,0.2]
[1759448472194,4.96767652,234.32,234.28,0.2]
[1759448472597,4.26767652,234.32,234.28,0.2]
[1759448472781,0.7,234.31,234.28,0.2]
[1759448473605,4.96792687,234.31,234.28,0.2]
[1759448473792,0.7,234.31,234.28,0.2]
[1759448479314,0.7,234.3,234.28,0.2]
[1759448479692,4.26793775,234.31,234.28,0.2]
[1759448479693,0.7,234.29,234.28,0.2]
[1759448480297,15.84468981,234.29,234.28,0.2]
[1759448485916,46.08468981,234.29,234.28,0.2]
[1759448490031,15.84468981,234.29,234.28,0.2]
[1759448490227,46.08468981,234.29,234.28,0.2]
[1759448491137,15.84468981,234.29,234.28,0.2]
[1759448491313,46.08468981,234.29,234.28,0.2]
[1759448495852,15.14468981,234.29,234.28,0.2]
[1759448496314,45.38468981,234.29,234.28,0.2]
[1759448497436,10.87647521,234.29,234.28,0.2]
[1759448497627,41.11647521,234.29,234.28,0.2]
[1759448499140,10.87647521,234.29,234.28,0.2]
[1759448501137,15.14468981,234.29,234.28,0.2]
[1759448501443,15.82468981,234.29,234.28,0.2]
[1759448502248,46.06468981,234.29,234.28,0.2]
[1759448502618,10.87647521,234.28,234.24,0.2]
[1759448502933,10.87647521,234.26,234.24,0.2]
[1759448503136,34.50894343,234.25,234.24,0.2]
[1759448503437,35.18894343,234.25,234.24,0.2]
[1759448503643,46.06541864,234.25,234.24,0.2]
[1759448505340,15.82541864,234.25,234.24,0.2]
[1759448505519,46.06541864,234.25,234.24,0.2]
[1759448509623,15.82541864,234.25,234.24,0.2]
[1759448509928,45.38541864,234.25,234.24,0.2]
[1759448511142,15.14541864,234.25,234.24,0.2]
[1759448511535,45.38541864,234.25,234.24,0.2]
[1759448513239,15.82541864,234.25,234.24,0.2]
[1759448513464,46.06541864,234.25,234.24,0.2]
[1759448524135,15.82541864,234.25,234.24,0.2]
[1759448524452,45.38541864,234.25,234.24,0.2]
[1759448524659,46.09541864,234.25,234.24,0.2]
[1759448527659,15.85541864,234.25,234.24,0.2]
[1759448527861,46.09541864,234.25,234.24,0.2]
[1759448528166,46.09541864,234.25,234.24,1e-08]
[1759448532354,15.85541864,234.25,234.24,1e-08]
[1759448532562,46.09541864,234.25,234.24,1e-08]
[1759448533069,15.85541864,234.25,234.24,1e-08]
[1759448533257,46.09541864,234.25,234.24,1e-08]
[1759448534247,15.85541864,234.25,234.24,1e-08]
[1759448534439,46.09541864,234.25,234.24,1e-08]
[1759448535261,15.85541864,234.25,234.24,1e-08]
[1759448535560,45.38541864,234.25,234.24,0.22000001]
[1759448536067,45.38541864,234.25,234.24,1e-08]
[1759448537459,15.14541864,234.25,234.24,1e-08]
[1759448537664,45.36541864,234.25,234.24,1e-08]
[1759448539247,15.14541864,234.25,234.24,1e-08]
[1759448539450,45.36541864,234.25,234.24,1e-08]
[1759448540676,15.14541864,234.25,234.24,1e-08]
[1759448540849,45.36541864,234.25,234.24,1e-08]
[1759448541550,4.26803243,234.3,234.24,0.22000001]
[1759448541766,10.87647521,234.29,234.24,0.22000001]
[1759448542572,10.87647521,234.29,234.24,1e-08]
[1759448542789,10.87647521,234.26,234.24,1e-08]
[1759448544854,15.14536738,234.26,234.24,1e-08]
[1759448545277,11.53647521,234.25,234.24,1e-08]
[1759448546560,10.87647521,234.25,234.24,1e-08]
[1759448547077,15.80541864,234.25,234.24,1e-08]
[1759448548079,15.14541864,234.25,234.24,1e-08]
[1759448548868,4.26866505,234.27,234.24,1e-08]
[1759448549179,10.87647521,234.26,234.24,1e-08]
[1759448550083,15.14535089,234.26,234.24,1e-08]
[1759448552062,15.82535089,234.26,234.24,1e-08]
[1759448552786,15.14535089,234.26,234.24,1e-08]
[1759448554871,15.82535089,234.26,234.24,1e-08]
[1759448555269,10.87647521,234.27,234.24,1e-08]
[1759448556075,0.68,234.26,234.24,1e-08]
[1759448556592,0.68,234.26,234.25,20.8]
[1759448556770,10.87647521,234.27,234.25,20.8]
[1759448556977,4.2687612,234.26,234.25,20.8]
[1759448557178,4.9487612,234.26,234.25,20.8]
[1759448557486,4.2687612,234.26,234.25,20.8]
[1759448558073,10.87647521,234.27,234.25,20.8]
[1759448558378,11.55647521,234.27,234.25,20.8]
[1759448559273,15.82506935,234.27,234.25,20.8]
[1759448562184,10.87647521,234.27,234.25,20.8]
[1759448562384,0.68,234.33,234.26,0.22]
[1759448562578,10.87647521,234.32,234.3,20.8]
[1759448563173,10.87647521,234.33,234.3,20.8]
[1759448563488,11.55647521,234.33,234.3,20.8]
[1759448563991,15.14407658,234.33,234.3,20.8]
[1759448564191,0.68,234.32,234.3,20.8]
[1759448566684,4.9477037,234.32,234.3,20.8]
[1759448567273,0.68,234.32,234.3,20.8]
[1759448568395,0.68,234.32,234.31,30.2]
[1759448571171,4.94766814,234.32,234.31,30.2]
[1759448571977,4.94766814,234.32,234.3,20.8]
[1759448572195,0.68,234.31,234.3,51.0]
[1759448572385,4.94785028,234.31,234.3,50.98]
[1759448572585,4.94785028,234.31,234.3,20.8]
[1759448572797,4.26785028,234.31,234.3,50.98]
[1759448573299,4.94785028,234.31,234.3,50.98]
[1759448574094,4.26768316,234.32,234.3,50.98]
[1759448574322,4.94768316,234.32,234.3,50.98]
[1759448574501,4.94768316,234.32,234.3,20.8]
[1759448574698,15.82415837,234.32,234.31,30.18]
[1759448575182,15.14415837,234.32,234.31,30.18]
[1759448575375,15.82415837,234.32,234.31,30.18]
[1759448575575,15.82415837,234.32,234.3,20.8]
[1759448575776,15.14415837,234.32,234.31,30.18]
[1759448577493,10.87647521,234.32,234.31,30.18]
[1759448577699,12.81695255,234.34,234.31,30.18]
[1759448577900,10.87647521,234.33,234.31,30.18]
[1759448578101,10.87647521,234.34,234.31,30.18]
[1759448578307,11.55647521,234.34,234.31,30.18]
[1759448579393,4.26657564,234.38,234.34,20.8]
[1759448579709,4.26657564,234.38,234.35,30.18]
[1759448580094,4.94657564,234.38,234.35,30.18]
[1759448580704,4.94661408,234.38,234.35,30.18]
[1759448581681,0.71,234.37,234.35,30.18]
[1759448582304,10.87647521,234.36,234.25,10.67193828]
[1759448582508,10.87647521,234.34,234.24,20.80000001]
[1759448582812,10.87647521,234.32,234.28,20.8]
[1759448583107,10.87647521,234.32,234.31,20.8]
[1759448583687,11.58647521,234.32,234.31,20.8]
[1759448584676,15.85414335,234.32,234.31,20.8]
[1759448588409,28.67219116,234.32,234.31,20.8]
[1759448590020,39.34136152,234.32,234.24,1e-08]
[1759448590318,39.34136152,234.32,234.25,27.9]
[1759448590623,10.87647521,234.3,234.25,27.9]
[1759448590918,25.81586397,234.28,234.25,27.9]
[1759448591102,0.71,234.27,234.25,27.9]
[1759448591304,0.71,234.26,234.25,27.9]
[1759448591509,11.58647521,234.26,234.25,27.9]
[1759448591820,10.87647521,234.25,234.24,1e-08]
[1759448592196,11.58647521,234.25,234.24,1e-08]
[1759448592398,24.40835788,234.25,234.24,1e-08]
[1759448593009,28.67730131,234.25,234.24,1e-08]
[1759448594513,58.83730131,234.25,234.24,1e-08]
[1759448594816,28.67730131,234.25,234.24,1e-08]
[1759448596116,27.96730131,234.25,234.24,1e-08]
[1759448596289,15.14541864,234.25,234.24,1e-08]
[1759448599197,15.85541864,234.25,234.24,1e-08]
[1759448601111,28.67730131,234.25,234.24,1e-08]
[1759448605031,27.96730131,234.25,234.24,1e-08]
[1759448605227,15.14541864,234.25,234.24,1e-08]
[1759448605726,15.80541864,234.25,234.24,1e-08]
[1759448607928,15.14541864,234.25,234.24,1e-08]
[1759448610418,10.87647521,234.26,234.24,1e-08]
[1759448611609,4.26885493,234.26,234.24,1e-08]
[1759448613524,11.54647521,234.25,234.24,1e-08]
[1759448613731,15.81541864,234.25,234.24,1e-08]
[1759448614416,15.81541864,234.25,234.24,1e-08]
[1759448618836,28.63839741,234.25,234.24,1e-08]
[1759448627548,15.14541864,234.25,234.24,1e-08]
[1759448628150,15.81541864,234.25,234.24,1e-08]
[1759448628752,28.63730131,234.25,234.24,1e-08]
[1759448629554,61.10229865,234.25,234.24,1e-08]
[1759448629753,10.87647521,234.24,234.16,0.2]
[1759448629956,13.20147255,234.24,234.16,0.2]
[1759448630131,10.87647521,234.22,234.16,0.2]
[1759448630451,10.87647521,234.2,234.16,0.2]
[1759448630745,10.87647521,234.18,234.16,0.2]
[1759448631251,11.54647521,234.18,234.16,0.2]
[1759448631625,15.14687705,234.17,234.16,0.2]
[1759448631958,0.67,234.23,234.17,0.22]
[1759448632127,10.87647521,234.25,234.17,0.22]
[1759448632327,34.37136603,234.25,234.17,0.22]
[1759448632529,34.37136603,234.25,234.21,20.8]
[1759448632745,10.87647521,234.23,234.21,20.8]
[1759448633739,15.14596543,234.22,234.21,20.8]
[1759448635532,15.14580276,234.23,234.21,20.8]
[1759448636232,15.81580276,234.23,234.21,20.8]
[1759448636454,15.14580276,234.23,234.21,20.8]
[1759448636657,10.87647521,234.23,234.21,20.8]
[1759448636957,10.87647521,234.24,234.21,20.8]
[1759448637333,15.14541864,234.25,234.21,20.8]
[1759448637530,15.81541864,234.25,234.21,20.8]
[1759448638140,0.67,234.24,234.21,20.8]
[1759448638341,25.81777723,234.25,234.21,20.8]
[1759448638657,0.67,234.24,234.16,21.0]
[1759448638868,0.67,234.23,234.16,21.0]
[1759448639026,0.67,234.22,234.16,30.34]
[1759448639231,10.87647521,234.2,234.16,30.34]
[1759448639450,15.81651235,234.19,234.18,20.8]
[1759448639637,10.87647521,234.18,234.16,0.2]
[1759448639938,10.87647521,234.18,234.17,20.8]
[1759448641247,15.14669469,234.18,234.17,20.8]
[1759448641450,15.81669469,234.18,234.17,20.8]
[1759448642067,15.14669469,234.18,234.17,20.8]
[1759448642669,15.83669469,234.18,234.17,20.8]
[1759448644064,15.83669469,234.18,234.16,0.2]
[1759448644581,15.83669469,234.18,234.16,21.0]
[1759448644733,11.56647521,234.17,234.16,21.0]
[1759448644934,10.87647521,234.17,234.16,21.0]
[1759448645338,15.14687705,234.17,234.16,21.0]
[1759448645763,15.83687705,234.17,234.16,21.0]
[1759448646563,15.14687705,234.17,234.16,21.0]
[1759448647154,15.83687705,234.17,234.16,21.0]
[1759448656908,15.83687705,234.17,234.16,0.2]
[1759448659561,15.14687705,234.17,234.16,0.2]
[1759448660289,15.83687705,234.17,234.16,0.2]
[1759448664376,15.83687705,234.17,234.16,21.0]
[1759448664377,10.87647521,234.17,234.16,21.0]
[1759448664580,10.87647521,234.19,234.16,21.0]
[1759448665460,23.70109848,234.19,234.16,21.0]
[1759448665801,27.97114376,234.19,234.16,21.0]
[1759448665972,15.14652049,234.19,234.16,21.0]
[1759448666593,15.14652049,234.19,234.17,30.12]
[1759448667161,15.81652049,234.19,234.17,30.12]
[1759448667366,15.14652049,234.19,234.17,30.12]
[1759448667561,0.67,234.18,234.17,30.12]
[1759448667766,10.87647521,234.17,234.16,0.2]
[1759448667968,11.54647521,234.17,234.16,21.0]
[1759448668284,22.42295042,234.17,234.16,0.2]
[1759448669069,26.69335226,234.17,234.16,0.2]
[1759448670291,26.02335226,234.17,234.16,0.2]
[1759448670605,4.27024288,234.18,234.16,0.2]
[1759448670803,10.87647521,234.17,234.16,0.2]
[1759448671376,15.14669469,234.18,234.16,0.2]
[1759448671703,15.14669469,234.18,234.16,30.3]
[1759448672573,24.16941311,234.2,234.16,30.52]
[1759448672574,10.87647521,234.19,234.16,30.52]
[1759448672784,10.87647521,234.19,234.18,20.8]
[1759448673200,11.53647521,234.19,234.18,20.8]
[1759448674714,15.80651235,234.19,234.18,20.8]
[1759448676204,15.14651235,234.19,234.18,20.8]
[1759448676691,15.80651235,234.19,234.18,20.8]
[1759448678505,10.87647521,234.19,234.18,20.8]
[1759448678798,10.87647521,234.2,234.19,20.8]
[1759448679112,11.53647521,234.2,234.19,20.8]
[1759448679608,10.87647521,234.2,234.19,20.8]
[1759448680197,15.14640152,234.2,234.19,20.8]
[1759448681521,15.14640152,234.2,234.19,50.9]
[1759448683606,28.63018432,234.22,234.21,20.8]
[1759448683801,15.14610926,234.22,234.21,20.8]
[1759448684528,12.82297877,234.23,234.22,20.8]
[1759448684735,4.26895437,234.25,234.22,50.88]
[1759448685029,0.66,234.24,234.22,50.88]
[1759448685732,4.92914492,234.24,234.22,50.88]
[1759448686954,0.66,234.23,234.22,50.88]
[1759448687315,4.92930794,234.23,234.22,50.88]
[1759448687499,4.26930794,234.23,234.22,50.88]
[1759448687704,4.92930794,234.23,234.22,50.88]
[1759448688310,4.26914794,234.24,234.22,50.88]
[1759448689506,4.92914794,234.24,234.22,50.88]
[1759448689735,0.66,234.23,234.22,50.88]
[1759448689938,11.53647521,234.23,234.22,50.88]
[1759448690233,11.53647521,234.23,234.17,0.22]
[1759448690407,11.53647521,234.23,234.21,20.8]
[1759448690610,10.87647521,234.23,234.22,30.08]
[1759448691262,11.53647521,234.23,234.22,30.08]
[1759448691840,15.80578315,234.23,234.22,30.08]
[1759448692044,15.14578315,234.23,234.22,30.08]
[1759448692636,10.6728142,234.24,234.22,30.08]
[1759448692637,4.26900513,234.25,234.24,20.8]
[1759448692830,4.26900513,234.25,234.24,50.88]
[1759448694163,4.92900513,234.25,234.24,50.88]
[1759448695657,4.92900513,234.25,234.24,30.08]
[1759448696027,4.92900513,234.25,234.23,30.08]
[1759448696234,11.53647521,234.24,234.23,30.08]
[1759448698230,4.26930794,234.23,234.18,0.22]
[1759448698429,4.26930794,234.23,234.22,20.8]
[1759448698638,4.26930794,234.23,234.22,50.86]
[1759448700059,4.92930794,234.23,234.22,50.86]
[1759448700544,4.26930794,234.23,234.22,50.86]
[1759448700946,4.92930794,234.23,234.22,50.86]
[1759448701538,4.92930794,234.23,234.16,4.47057219]
[1759448701539,10.87647521,234.22,234.16,0.2]
[1759448701732,10.87647521,234.22,234.17,23.96]
[1759448702044,0.72,234.21,234.17,30.06]
[1759448702252,10.87647521,234.19,234.17,30.06]
[1759448702445,11.59647521,234.18,234.17,30.06]
[1759448702647,15.86669469,234.18,234.17,30.06]
[1759448702844,10.87647521,234.17,234.16,0.2]
[1759448703234,11.59647521,234.17,234.16,0.2]
[1759448704256,15.86687705,234.17,234.16,0.2]
[1759448707636,28.69314524,234.17,234.16,0.2]
[1759448711836,12.82626819,234.17,234.16,21.0]
[1759448712163,131.3,234.3,234.16,30.48]
[1759448712164,4.26967251,234.21,234.16,30.48]
[1759448712357,12.82462327,234.2,234.19,20.8]
[1759448712546,4.26967251,234.21,234.19,50.86]
[1759448713464,4.26967251,234.21,234.16,0.2]
[1759448713671,11.59647521,234.2,234.16,0.2]
[1759448713977,11.59647521,234.2,234.18,20.8]
[1759448713978,13.30649808,234.2,234.18,20.8]
[1759448714261,4.27003714,234.19,234.18,50.86]
[1759448714956,4.99003714,234.19,234.18,50.86]
[1759448716367,15.66513001,234.19,234.16,0.2]
[1759448716551,11.59647521,234.18,234.16,0.2]
[1759448716739,11.59647521,234.18,234.16,30.26]
[1759448716941,11.59647521,234.17,234.16,30.26]
[1759448717563,11.59647521,234.17,234.16,0.2]
[1759448718250,15.86687705,234.17,234.16,0.2]
[1759448718858,15.14687705,234.17,234.16,21.0]
[1759448719558,15.14687705,234.17,234.16,0.2]
[1759448721073,15.86687705,234.17,234.16,0.2]
[1759448722547,28.69314524,234.17,234.16,0.2]
[1759448724360,15.86687705,234.17,234.16,0.2]
[1759448724560,28.69479058,234.17,234.16,0.2]
[1759448732181,27.97479058,234.17,234.16,0.2]
[1759448732489,15.14687705,234.17,234.16,0.2]
[1759448732671,16.85719238,234.17,234.16,0.2]
[1759448732866,17.55719238,234.17,234.16,0.2]
[1759448738275,47.59719238,234.17,234.16,0.2]
[1759448743590,47.59719238,234.17,234.14,0.2]
[1759448743789,10.87647521,234.16,234.14,1e-08]